fUSD/lending_fUSD_20260115
["ID","MTS","AMOUNT","RATE_DAILY","PERIOD"]
[402096863,1768517459505,-500.0,0.0003589,10]
[402096864,1768517459514,-549.08,0.0003589,10]
[402096865,1768517459523,-502.83,0.0003589,10]
[402096866,1768517459532,-500.0,0.0003589,10]
[402096867,1768517459542,-664.95,0.0003589,10]
[402096868,1768517459551,-500.0,0.0003589,10]
[402096869,1768517459560,-500.0,0.0003589,10]
[402096870,1768517459569,-620.84,0.0003589,10]
[402096871,1768517459578,-500.0,0.0003589,10]
[402096872,1768517459587,-930.0,0.0003589,10]
[402096873,1768517459596,-500.0,0.0003589,10]
[402096874,1768517459605,-500.0,0.0003589,10]
[402096875,1768517459614,-500.0,0.0003589,10]
[402096876,1768517459623,-500.0,0.0003589,10]
[402096877,1768517459636,-382.95535535,0.0003589,10]
[402096878,1768517459674,-228.63464465,0.0003589,10]
[402096879,1768517459683,-500.0,0.0003589,10]
[402096880,1768517459693,-843.01,0.0003589,10]
[402096881,1768517459705,-500.0,0.0003589,10]
[402096882,1768517459714,-581.65,0.0003589,10]
[402096883,1768517459723,-500.0,0.0003589,10]
[402096884,1768517459732,-500.0,0.0003589,10]
[402096885,1768517459743,-500.0,0.0003589,10]
[402096886,1768517459754,-500.0,0.0003589,10]
[402096887,1768517459764,-945.88,0.0003589,10]
[402096888,1768517459775,-860.28,0.0003589,10]
[402096889,1768517459784,-342.70535535,0.0003589,10]
[402096890,1768517459798,-157.29464465,0.0003589,10]
[402096891,1768517459808,-500.0,0.0003589,10]
[402096892,1768517459817,-825.03,0.0003589,10]
[402096893,1768517459827,-500.0,0.0003589,10]
[402096894,1768517459838,-500.0,0.0003589,10]
[402096895,1768517459850,-641.64,0.0003589,10]
[402096896,1768517459866,-500.0,0.0003589,10]
[402096897,1768517459878,-20.7990129,0.0003589,10]
[402096898,1768517459890,-479.2009871,0.0003589,10]
[402096899,1768517459901,-722.05051448,0.0003589,10]
[402096900,1768517459915,-267.11948552,0.0003589,10]
[402096901,1768517459925,-1173.17,0.0003589,10]
[402096902,1768517459935,-500.0,0.0003589,10]
[402096903,1768517459946,-500.0,0.0003589,10]
[402096904,1768517459955,-663.95,0.0003589,10]
[402096905,1768517459966,-523.73,0.0003589,10]
[402096906,1768517459975,-74.20256344,0.0003589,10]
[402096907,1768517459987,-288.65603421,0.0003589,10]
[402096908,1768517459996,-1510.57,0.0003589,10]
[402096909,1768517460006,-847.72,0.0003589,10]
[402096910,1768517460015,-941.74,0.0003589,10]
[402096911,1768517460025,-64.65423614,0.0003589,10]
[402096912,1768517460038,-435.34576386,0.0003589,10]
[402096913,1768517460047,-361.20387032,0.0003589,10]
[402096914,1768517460059,-138.79612968,0.0003589,10]
[402096915,1768517460068,-294.2323599,0.0003589,10]
[402096916,1768517460078,-410.69997,0.0003589,10]
[402096917,1768517460090,-185.1976701,0.0003589,10]
[402096918,1768517460100,-500.0,0.0003589,10]
[402096919,1768517460110,-500.123677,0.0003589,10]
[402096920,1768517460122,-1175.506323,0.0003589,10]
[402096921,1768517460133,-500.0,0.0003589,10]
[402096922,1768517460143,-576.61984393,0.0003589,10]
[402096923,1768517460155,-265.92579989,0.0003589,10]
[402096924,1768517460174,-427.15435618,0.0003589,10]
[402096925,1768517460184,-1012.73,0.0003589,10]
[402096926,1768517460193,-868.69,0.0003589,10]
[402096927,1768517460203,-500.0,0.0003589,10]
[402096928,1768517460213,-500.0,0.0003589,10]
[402096929,1768517460223,-624.53,0.0003589,10]
[402096930,1768517460232,-266.66689801,0.0003589,10]
[402096931,1768517460247,-233.33310199,0.0003589,10]
[402096932,1768517460256,-266.66689801,0.0003589,10]
[402096933,1768517460268,-233.33310199,0.0003589,10]
[402096934,1768517460278,-500.0,0.0003589,10]
[402096935,1768517460288,-500.0,0.0003589,10]
[402096936,1768517460298,-543.36541337,0.0003589,10]
[402096937,1768517460308,-614.76,0.0003589,10]
[402096938,1768517460318,-691.89,0.0003589,10]
[402096939,1768517460328,-500.0,0.0003589,10]
[402096940,1768517460338,-500.0,0.0003589,10]
[402096941,1768517460347,-500.0,0.0003589,10]
[402096942,1768517460357,-482.16105137,0.0003589,10]
[402096943,1768517460369,-17.83894863,0.0003589,10]
[402096944,1768517460378,-1213.38,0.0003589,10]
[402096945,1768517460388,-500.0,0.0003589,10]
[402096946,1768517460397,-739.32,0.0003589,10]
[402096947,1768517460406,-876.76,0.0003589,10]
[402096948,1768517460416,-500.0,0.0003589,10]
[402096949,1768517460425,-1256.58,0.0003589,10]
[402096950,1768517460435,-500.0,0.0003589,10]
[402096951,1768517460444,-500.0,0.0003589,10]
[402096952,1768517460455,-1355.47,0.0003589,10]
[402096953,1768517460464,-500.0,0.0003589,10]
[402096954,1768517460474,-500.0,0.0003589,10]
[402096955,1768517460484,-500.0,0.0003589,10]
[402096956,1768517460493,-500.0,0.0003589,10]
[402096957,1768517460502,-500.0,0.0003589,10]
[402096958,1768517460512,-500.0,0.0003589,10]
[402096959,1768517460521,-500.0,0.0003589,10]
[402096960,1768517460530,-500.0,0.0003589,10]
[402096961,1768517460539,-743.23,0.0003589,10]
[402096962,1768517460548,-587.36,0.0003589,10]
[402096963,1768517460559,-500.0,0.0003589,10]
[402096964,1768517460568,-780.25,0.0003589,10]
[402096965,1768517460578,-505.19675235,0.0003589,10]
[402096966,1768517460589,-742.07,0.0003589,10]
[402096967,1768517460598,-1279.91,0.0003589,10]
[402096968,1768517460608,-721.01,0.0003589,10]
[402096969,1768517460617,-500.0,0.0003589,10]
[402096970,1768517460630,-543.55,0.0003589,10]
[402096971,1768517460639,-500.0,0.0003589,10]
[402096972,1768517460648,-500.0,0.0003589,10]
[402096973,1768517460658,-500.0,0.0003589,10]
[402096974,1768517460668,-885.16,0.0003589,10]
[402096975,1768517460678,-500.0,0.0003589,10]
[402096976,1768517460689,-832.45,0.0003589,10]
[402096977,1768517460700,-500.0,0.0003589,10]
[402096978,1768517460710,-500.0,0.0003589,10]
[402096979,1768517460719,-500.0,0.0003589,10]
[402096980,1768517460729,-511.68,0.0003589,10]
[402096981,1768517460738,-500.0,0.0003589,10]
[402096982,1768517460747,-1790.65,0.0003589,10]
[402096983,1768517460756,-510.84,0.0003589,10]
[402096984,1768517460765,-500.0,0.0003589,10]
[402096985,1768517460774,-952.62,0.0003589,10]
[402096986,1768517460783,-500.0,0.0003589,10]
[402096987,1768517460792,-782.58,0.0003589,10]
[402096988,1768517460801,-618.51,0.0003589,10]
[402096989,1768517460810,-500.0,0.0003589,10]
[402096990,1768517460819,-595.27,0.0003589,10]
[402096991,1768517460828,-500.0,0.0003589,10]
[402096992,1768517460837,-500.0,0.0003589,10]
[402096993,1768517460847,-500.0,0.0003589,10]
[402096994,1768517460857,-500.0,0.0003589,10]
[402096995,1768517460867,-836.96,0.0003589,10]
[402096996,1768517460876,-725.4,0.0003589,10]
[402096997,1768517460886,-500.0,0.0003589,10]
[402096998,1768517460895,-500.0,0.0003589,10]
[402096999,1768517460904,-585.09,0.0003589,10]
[402097000,1768517460913,-500.0,0.0003589,10]
[402097001,1768517460922,-643.94,0.0003589,10]
[402097002,1768517460932,-500.0,0.0003589,10]
[402097003,1768517460941,-2042.44,0.0003589,10]
[402097004,1768517460950,-1245.12,0.0003589,10]
[402097005,1768517460961,-251.93981168,0.0003589,10]
[402097006,1768517460970,-553.13,0.0003589,10]
[402097007,1768517460979,-500.0,0.0003589,10]
[402097008,1768517460988,-905.86,0.0003589,10]
[402097009,1768517460997,-603.64,0.0003589,10]
[402097010,1768517461005,-702.69,0.0003589,10]
[402097011,1768517461014,-637.02,0.0003589,10]
[402097012,1768517461024,-1347.67,0.0003589,10]
[402097013,1768517461032,-889.74,0.0003589,10]
[402097014,1768517461041,-903.98,0.0003589,10]
[402097015,1768517461050,-505.71,0.0003589,10]
[402097016,1768517461059,-500.0,0.0003589,10]
[402097017,1768517461069,-500.0,0.0003589,10]
[402097018,1768517461077,-526.68,0.0003589,10]
[402097019,1768517461087,-500.0,0.0003589,10]
[402097020,1768517461097,-500.0,0.0003589,10]
[402097021,1768517461107,-2493.57,0.0003589,10]
[402097022,1768517461117,-155.306841,0.0003589,10]
[402097023,1768517461127,-558.26,0.0003589,10]
[402097024,1768517461137,-178.587181,0.0003589,10]
[402097025,1768517461146,-500.0,0.0003589,10]
[402097026,1768517461156,-500.0,0.0003589,10]
[402097027,1768517461165,-500.0,0.0003589,10]
[402097028,1768517461175,-500.0,0.0003589,10]
[402097029,1768517461184,-1033.62,0.0003589,10]
[402097030,1768517461194,-750.4,0.0003589,10]
[402097031,1768517461204,-312.55639252,0.0003589,10]
[402097032,1768517461213,-1169.6,0.0003589,10]
[402097033,1768517461223,-500.0,0.0003589,10]
[402097034,1768517461233,-500.0,0.0003589,10]
[402097035,1768517461242,-1186.78,0.0003589,10]
[402097036,1768517461251,-500.0,0.0003589,10]
[402097037,1768517461261,-500.0,0.0003589,10]
[402097038,1768517461271,-500.0,0.0003589,10]
[402097039,1768517461281,-709.55,0.0003589,10]
[402097040,1768517461291,-500.0,0.0003589,10]
[402097041,1768517461301,-608.3065795,0.0003589,10]
[402097042,1768517461310,-500.0,0.0003589,10]
[402097043,1768517461320,-500.0,0.0003589,10]
[402097044,1768517461330,-500.0,0.0003589,10]
[402097045,1768517461339,-883.4,0.0003589,10]
[402097046,1768517461349,-500.0,0.0003589,10]
[402097047,1768517461359,-500.0,0.0003589,10]
[402097048,1768517461368,-765.71,0.0003589,10]
[402097049,1768517461378,-1098.9,0.0003589,10]
[402097050,1768517461388,-500.0,0.0003589,10]
[402097051,1768517461397,-500.0,0.0003589,10]
[402097052,1768517461407,-500.0,0.0003589,10]
[402097053,1768517461417,-500.0,0.0003589,10]
[402097054,1768517461426,-575.53,0.0003589,10]
[402097055,1768517461436,-500.0,0.0003589,10]
[402097056,1768517461445,-500.0,0.0003589,10]
[402097057,1768517461455,-641.15,0.0003589,10]
[402097058,1768517461466,-590.13,0.0003589,10]
[402097059,1768517461475,-1381.27,0.0003589,10]
[402097060,1768517461485,-659.29,0.0003589,10]
[402097061,1768517461495,-694.62,0.0003589,10]
[402097062,1768517461504,-500.0,0.0003589,10]
[402097063,1768517461514,-577.36,0.0003589,10]
[402097064,1768517461523,-500.0,0.0003589,10]
[402097065,1768517461532,-511.06,0.0003589,10]
[402097066,1768517461542,-500.0,0.0003589,10]
[402097067,1768517461552,-500.0,0.0003589,10]
[402097068,1768517461561,-500.0,0.0003589,10]
[402097069,1768517461570,-1037.22,0.0003589,10]
[402097070,1768517461579,-2075.74,0.0003589,10]
[402097071,1768517461589,-763.26,0.0003589,10]
[402097072,1768517461599,-527.88,0.0003589,10]
[402097073,1768517461608,-500.0,0.0003589,10]
[402097074,1768517461617,-500.0,0.0003589,10]
[402097075,1768517461629,-501.75,0.0003589,10]
[402097076,1768517461642,-863.9,0.0003589,10]
[402097077,1768517461651,-531.88,0.0003589,10]
[402097078,1768517461660,-765.5,0.0003589,10]
[402097079,1768517461671,-817.65,0.0003589,10]
[402097080,1768517461681,-617.57975743,0.0003589,10]
[402097081,1768517461690,-1395.45,0.0003589,10]
[402097082,1768517461701,-500.0,0.0003589,10]
[402097083,1768517461712,-1065.29,0.0003589,10]
[402097084,1768517461721,-754.63,0.0003589,10]
[402097085,1768517461733,-500.0,0.0003589,10]
[402097086,1768517461745,-1096.36,0.0003589,10]
[402097087,1768517461754,-500.0,0.0003589,10]
[402097088,1768517461764,-1255.0,0.0003589,10]
[402097089,1768517461773,-500.0,0.0003589,10]
[402097090,1768517461782,-500.0,0.0003589,10]
[402097091,1768517461793,-500.0,0.0003589,10]
[402097092,1768517461802,-436.87107427,0.0003589,10]
[402097093,1768517461812,-500.0,0.0003589,10]
[402097094,1768517461821,-500.0,0.0003589,10]
[402097095,1768517461830,-500.0,0.0003589,10]
[402097096,1768517461839,-500.0,0.0003589,10]
[402097097,1768517461848,-500.0,0.0003589,10]
[402097098,1768517461857,-1252.34,0.0003589,10]
[402097099,1768517461866,-500.0,0.0003589,10]
[402097100,1768517461875,-500.0,0.0003589,10]
[402097101,1768517461884,-719.64,0.0003589,10]
[402097102,1768517461894,-500.0,0.0003589,10]
[402097103,1768517461904,-500.0,0.0003589,10]
[402097104,1768517461913,-500.0,0.0003589,10]
[402097105,1768517461924,-1008.4,0.0003589,10]
[402097106,1768517461934,-277.59094323,0.0003589,10]
[402097107,1768517461943,-668.57,0.0003589,10]
[402097108,1768517461952,-500.0,0.0003589,10]
[402097109,1768517461962,-500.0,0.0003589,10]
[402097110,1768517461971,-500.0,0.0003589,10]
[402097111,1768517461980,-539.06,0.0003589,10]
[402097112,1768517461989,-841.27,0.0003589,10]
[402097113,1768517461998,-500.0,0.0003589,10]
[402097114,1768517462007,-500.0,0.0003589,10]
[402097115,1768517462016,-500.0,0.0003589,10]
[402097116,1768517462026,-500.0,0.0003589,10]
[402097117,1768517462036,-531.87,0.0003589,10]
[402097118,1768517462045,-546.19,0.0003589,10]
[402097119,1768517462055,-500.0,0.0003589,10]
[402097120,1768517462064,-1433.33,0.0003589,10]
[402097121,1768517462073,-500.0,0.0003589,10]
[402097122,1768517462083,-775.81,0.0003589,10]
[402097123,1768517462092,-500.0,0.0003589,10]
[402097124,1768517462101,-1034.77,0.0003589,10]
[402097125,1768517462111,-500.0,0.0003589,10]
[402097126,1768517462121,-994.35,0.0003589,10]
[402097127,1768517462130,-1053.62,0.0003589,10]
[402097128,1768517462140,-612.5980741,0.0003589,10]
[402097129,1768517462151,-649.84339161,0.0003589,10]
[402097130,1768517462160,-1173.63,0.0003589,10]
[402097131,1768517462170,-1055.94,0.0003589,10]
[402097132,1768517462179,-755.13,0.0003589,10]
[402097133,1768517462189,-500.0,0.0003589,10]
[402097134,1768517462198,-556.92109286,0.0003589,10]
[402097135,1768517462208,-500.0,0.0003589,10]
[402097136,1768517462217,-500.33,0.0003589,10]
[402097137,1768517462227,-151.0,0.0003589,31]
[402097138,1768517462236,-1218.31,0.0003589,10]
[402097139,1768517462246,-698.37,0.0003589,10]
[402097140,1768517462255,-1563.06,0.0003589,10]
[402097141,1768517462264,-617.13,0.0003589,10]
[402097142,1768517462273,-500.0,0.0003589,10]
[402097143,1768517462283,-1093.04,0.0003589,10]
[402097144,1768517462292,-500.0,0.0003589,10]
[402097145,1768517462302,-660.47,0.0003589,10]
[402097146,1768517462311,-500.0,0.0003589,10]
[402097147,1768517462320,-500.0,0.0003589,10]
[402097148,1768517462329,-588.19,0.0003589,10]
[402097149,1768517462338,-500.0,0.0003589,10]
[402097150,1768517462348,-500.0,0.0003589,10]
[402097151,1768517462357,-622.13,0.0003589,10]
[402097152,1768517462366,-500.0,0.0003589,10]
[402097153,1768517462375,-940.61,0.0003589,10]
[402097154,1768517462384,-876.98,0.0003589,10]
[402097155,1768517462393,-500.0,0.0003589,10]
[402097156,1768517462402,-500.0,0.0003589,10]
[402097157,1768517462411,-500.0,0.0003589,10]
[402097158,1768517462420,-1809.41,0.0003589,10]
[402097159,1768517462430,-3209.93,0.0003589,10]
[402097160,1768517462439,-532.65,0.0003589,10]
[402097161,1768517462448,-500.0,0.0003589,10]
[402097162,1768517462457,-500.0,0.0003589,10]
[402097163,1768517462467,-923.74,0.0003589,10]
[402097164,1768517462475,-500.0,0.0003589,10]
[402097165,1768517462484,-1483.36,0.0003589,10]
[402097166,1768517462493,-500.0,0.0003589,10]
[402097167,1768517462502,-533.6,0.0003589,10]
[402097168,1768517462512,-500.0,0.0003589,10]
[402097169,1768517462521,-540.36,0.0003589,10]
[402097170,1768517462531,-500.0,0.0003589,10]
[402097171,1768517462540,-1647.5,0.0003589,10]
[402097172,1768517462549,-500.0,0.0003589,10]
[402097173,1768517462558,-500.0,0.0003589,10]
[402097174,1768517462568,-500.0,0.0003589,10]
[402097175,1768517462577,-1568.08,0.0003589,10]
[402097176,1768517462586,-351.71517072,0.0003589,10]
[402097177,1768517462596,-517.70600931,0.0003589,10]
[402097178,1768517462605,-1411.22,0.0003589,10]
[402097179,1768517462614,-654.56,0.0003589,10]
[402097180,1768517462838,-1631.24,0.0003589,10]
[402097181,1768517462847,-500.0,0.0003589,10]
[402097182,1768517462857,-548.19,0.0003589,10]
[402097183,1768517462867,-500.0,0.0003589,10]
[402097184,1768517462878,-575.11,0.0003589,10]
[402097185,1768517462888,-500.0,0.0003589,10]
[402097186,1768517462898,-500.0,0.0003589,10]
[402097187,1768517462908,-839.05,0.0003589,10]
[402097188,1768517462918,-1216.16,0.0003589,10]
[402097189,1768517462928,-500.0,0.0003589,10]
[402097190,1768517462939,-1317.51,0.0003589,10]
[402097191,1768517462951,-601.75,0.0003589,10]
[402097192,1768517462960,-545.12,0.0003589,10]
[402097193,1768517462970,-637.52,0.0003589,10]
[402097194,1768517462979,-732.37,0.0003589,10]
[402097195,1768517462988,-1152.5,0.0003589,10]
[402097196,1768517462997,-833.2,0.0003589,10]
[402097197,1768517463006,-500.0,0.0003589,10]
[402097198,1768517463016,-1255.42,0.0003589,10]
[402097199,1768517463026,-500.0,0.0003589,10]
[402097200,1768517463035,-1358.77,0.0003589,10]
[402097201,1768517463045,-1054.76,0.0003589,10]
[402097202,1768517463054,-500.0,0.0003589,10]
[402097203,1768517463063,-500.0,0.0003589,10]
[402097204,1768517463072,-500.0,0.0003589,10]
[402097205,1768517463082,-500.0,0.0003589,10]
[402097206,1768517463091,-705.14,0.0003589,10]
[402097207,1768517463100,-853.55,0.0003589,10]
[402097208,1768517463109,-622.43,0.0003589,10]
[402097209,1768517463119,-576.31,0.0003589,10]
[402097210,1768517463128,-500.0,0.0003589,10]
[402097211,1768517463138,-674.39,0.0003589,10]
[402097212,1768517463147,-1115.1,0.0003589,10]
[402097213,1768517463156,-500.0,0.0003589,10]
[402097214,1768517463166,-511.15,0.0003589,10]
[402097215,1768517463175,-803.14,0.0003589,10]
[402097216,1768517463184,-1448.78,0.0003589,10]
[402097217,1768517463194,-1037.6,0.0003589,10]
[402097218,1768517463205,-500.0,0.0003589,10]
[402097219,1768517463214,-761.3,0.0003589,10]
[402097220,1768517463224,-500.0,0.0003589,10]
[402097221,1768517463233,-500.0,0.0003589,10]
[402097222,1768517463243,-631.9,0.0003589,10]
[402097223,1768517463253,-500.0,0.0003589,10]
[402097224,1768517463263,-825.31,0.0003589,10]
[402097225,1768517463273,-500.0,0.0003589,10]
[402097226,1768517463283,-878.13,0.0003589,10]
[402097227,1768517463293,-649.71,0.0003589,10]
[402097228,1768517463303,-500.0,0.0003589,10]
[402097229,1768517463312,-500.0,0.0003589,10]
[402097230,1768517463321,-304.35864986,0.0003589,10]
[402097231,1768517463331,-500.0,0.0003589,10]
[402097232,1768517463340,-1132.78,0.0003589,10]
[402097233,1768517463349,-500.0,0.0003589,10]
[402097234,1768517463358,-558.88,0.0003589,10]
[402097235,1768517463368,-557.19,0.0003589,10]
[402097236,1768517463377,-572.6,0.0003589,10]
[402097237,1768517463386,-2277.7,0.0003589,10]
[402097238,1768517463395,-1218.37,0.0003589,10]
[402097239,1768517463405,-500.0,0.0003589,10]
[402097240,1768517463414,-520.1965648,0.0003589,10]
[402097241,1768517463423,-987.66,0.0003589,10]
[402097242,1768517463432,-789.91,0.0003589,10]
[402097243,1768517463441,-500.0,0.0003589,10]
[402097244,1768517463451,-500.0,0.0003589,10]
[402097245,1768517463460,-788.1,0.0003589,10]
[402097246,1768517463470,-500.0,0.0003589,10]
[402097247,1768517463479,-707.82,0.0003589,10]
[402097248,1768517463489,-500.0,0.0003589,10]
[402097249,1768517463498,-500.0,0.0003589,10]
[402097250,1768517463507,-562.89,0.0003589,10]
[402097251,1768517463516,-1341.24,0.0003589,10]
[402097252,1768517463525,-3125.3,0.0003589,10]
[402097253,1768517463534,-2161.64,0.0003589,10]
[402097254,1768517463544,-500.0,0.0003589,10]
[402097255,1768517463553,-500.0,0.0003589,10]
[402097256,1768517463562,-840.68,0.0003589,10]
[402097257,1768517463572,-500.0,0.0003589,10]
[402097258,1768517463582,-1145.35,0.0003589,10]
[402097259,1768517463591,-627.69,0.0003589,10]
[402097260,1768517463601,-1227.76,0.0003589,10]
[402097261,1768517463610,-500.0,0.0003589,10]
[402097262,1768517463620,-592.9,0.0003589,10]
[402097263,1768517463632,-713.63,0.0003589,10]
[402097264,1768517463641,-4234.31,0.0003589,10]
[402097265,1768517463650,-500.0,0.0003589,10]
[402097266,1768517463659,-500.0,0.0003589,10]
[402097267,1768517463669,-500.0,0.0003589,10]
[402097268,1768517463679,-600.84,0.0003589,10]
[402097269,1768517463688,-996.39,0.0003589,10]
[402097270,1768517463698,-500.0,0.0003589,10]
[402097271,1768517463709,-1792.71,0.0003589,10]
[402097272,1768517463718,-502.45,0.0003589,10]
[402097273,1768517463728,-500.0,0.0003589,10]
[402097274,1768517463739,-500.0,0.0003589,10]
[402097275,1768517463748,-500.0,0.0003589,10]
[402097276,1768517463758,-505.21,0.0003589,10]
[402097277,1768517463769,-500.0,0.0003589,10]
[402097278,1768517463778,-1003.0,0.0003589,10]
[402097279,1768517463788,-500.0,0.0003589,10]
[402097280,1768517463797,-371.58871977,0.0003589,10]
[402097281,1768517463806,-1297.13,0.0003589,10]
[402097282,1768517463815,-1029.55,0.0003589,10]
[402097283,1768517463825,-500.0,0.0003589,10]
[402097284,1768517463834,-747.85,0.0003589,10]
[402097285,1768517463849,-500.0,0.0003589,10]
[402097286,1768517463858,-620.18,0.0003589,10]
[402097287,1768517463868,-500.0,0.0003589,10]
[402097288,1768517463878,-500.0,0.0003589,10]
[402097289,1768517463887,-1049.68,0.0003589,10]
[402097290,1768517463896,-609.48,0.0003589,10]
[402097291,1768517463905,-957.64,0.0003589,10]
[402097292,1768517463915,-500.0,0.0003589,10]
[402097293,1768517463924,-707.89,0.0003589,10]
[402097294,1768517463933,-707.89,0.0003589,10]
[402097295,1768517463943,-543.24,0.0003589,10]
[402097296,1768517463952,-707.89,0.0003589,10]
[402097297,1768517463961,-707.89,0.0003589,10]
[402097298,1768517463970,-537.1,0.0003589,10]
[402097299,1768517463980,-707.89,0.0003589,10]
[402097300,1768517463990,-500.0,0.0003589,10]
[402097301,1768517463999,-780.54,0.0003589,10]
[402097302,1768517464008,-707.89,0.0003589,10]
[402097303,1768517464017,-707.89,0.0003589,10]
[402097304,1768517464026,-707.89,0.0003589,10]
[402097305,1768517464035,-707.89,0.0003589,10]
[402097306,1768517464045,-500.0,0.0003589,10]
[402097307,1768517464054,-707.89,0.0003589,10]
[402097308,1768517464064,-500.0,0.0003589,10]
[402097309,1768517464074,-707.89,0.0003589,10]
[402097310,1768517464084,-500.0,0.0003589,10]
[402097311,1768517464094,-707.89,0.0003589,10]
[402097312,1768517464104,-1393.26,0.0003589,10]
[402097313,1768517464113,-1035.17,0.0003589,10]
[402097314,1768517464122,-792.12,0.0003589,10]
[402097315,1768517464131,-707.89,0.0003589,10]
[402097316,1768517464141,-707.89,0.0003589,10]
[402097317,1768517464150,-707.89,0.0003589,10]
[402097318,1768517464160,-707.89,0.0003589,10]
[402097319,1768517464170,-707.89,0.0003589,10]
[402097320,1768517464180,-951.55,0.0003589,10]
[402097321,1768517464190,-707.89,0.0003589,10]
[402097322,1768517464201,-500.0,0.0003589,10]
[402097323,1768517464211,-707.89,0.0003589,10]
[402097324,1768517464221,-707.89,0.0003589,10]
[402097325,1768517464230,-195.88,0.0003589,10]
[402097326,1768517464240,-707.89,0.0003589,10]
[402097327,1768517464249,-500.0,0.0003589,10]
[402097328,1768517464259,-707.89,0.0003589,10]
[402097329,1768517464270,-707.89,0.0003589,10]
[402097330,1768517464280,-708.12421457,0.0003589,10]
[402097331,1768517464289,-500.0,0.0003589,10]
[402097332,1768517464298,-500.0,0.0003589,10]
[402097333,1768517464307,-500.0,0.0003589,10]
[402097334,1768517464316,-1123.92,0.0003589,10]
[402097335,1768517464325,-500.0,0.0003589,10]
[402097336,1768517464334,-625.67,0.0003589,10]
[402097337,1768517464344,-674.73,0.0003589,10]
[402097338,1768517464355,-500.0,0.0003589,10]
[402097339,1768517464365,-500.0,0.0003589,10]
[402097340,1768517464374,-500.0,0.0003589,10]
[402097341,1768517464385,-500.0,0.0003589,10]
[402097342,1768517464395,-151.0,0.0003589,31]
[402097343,1768517464404,-4002.29,0.0003589,10]
[402097344,1768517464413,-557.35,0.0003589,10]
[402097345,1768517464422,-500.0,0.0003589,10]
[402097346,1768517464431,-717.16,0.0003589,10]
[402097347,1768517464441,-500.0,0.0003589,10]
[402097348,1768517464451,-1040.01,0.0003589,10]
[402097349,1768517464460,-1208.87,0.0003589,10]
[402097350,1768517464469,-1425.03,0.0003589,10]
[402097351,1768517464478,-1964.0,0.0003589,10]
[402097352,1768517464488,-500.0,0.0003589,10]
[402097353,1768517464497,-1015.47,0.0003589,10]
[402097354,1768517464506,-944.93,0.0003589,10]
[402097355,1768517464514,-500.0,0.0003589,10]
[402097356,1768517464523,-500.0,0.0003589,10]
[402097357,1768517464532,-1209.3,0.0003589,10]
[402097358,1768517464541,-551.4,0.0003589,10]
[402097359,1768517464550,-500.0,0.0003589,120]
[402097360,1768517464559,-1025.95,0.0003589,10]
[402097361,1768517464569,-500.0,0.0003589,10]
[402097362,1768517464577,-500.0,0.0003589,10]